fUST/lending_fUST_20250329
["ID","MTS","AMOUNT","RATE_DAILY","PERIOD"]
[356818392,1743250246709,-500.0,0.00024873,2]
[356818393,1743250246718,-500.0,0.00024873,2]
[356818394,1743250246727,-500.0,0.00024873,2]
[356818395,1743250246736,-500.0,0.00024873,2]
[356818396,1743250246745,-500.0,0.00024873,2]
[356818397,1743250246756,-571.85630457,0.00024873,2]
[356818398,1743250246765,-500.0,0.00024873,2]
[356818399,1743250246775,-500.0,0.00024873,2]
[356818400,1743250246786,-500.0,0.00024873,2]
[356818401,1743250246795,-500.0,0.00024873,2]
[356818402,1743250246804,-156.587,0.00024885,2]
[356818403,1743250246814,-160.735,0.00024885,2]
[356818404,1743250246823,-85542.22307095,0.000249,2]
[356818405,1743250246835,-1981.0122,0.000249,2]
[356818406,1743250638779,166.5672383,0.00013699,2]
[356818422,1743250771478,926.25839,0.00029937,14]
[356818423,1743250771804,926.25839,0.00028459,14]
[356818424,1743250772119,926.25839,0.0002698,14]
[356818426,1743251111136,151.0,0.000282,16]
[356818429,1743251160285,500.0,0.0003,10]
[356818430,1743251180761,1000.0,0.0003,120]
[356818432,1743251242390,-247.18370313,0.00023537,2]
[356818433,1743251254090,-1115.24114747,0.00023537,2]
[356818438,1743251326436,1642.89422334,0.00026,30]
[356818446,1743251365195,625.224413,0.00029724,14]
[356818447,1743251365491,625.224413,0.00028099,14]
[356818448,1743251365764,625.224413,0.00026474,14]
[356818482,1743251431904,-3637.5751494,0.00023537,2]
[356818483,1743251431914,-1954.10832897,0.000236,2]
[356818484,1743251431923,-300.0,0.0002369,2]
[356818485,1743251431933,-500.0,0.00023691,2]
[356818486,1743251431942,-500.0,0.00023691,2]
[356818487,1743251431951,-500.0,0.00023691,2]
[356818488,1743251431960,-500.0,0.00023691,2]
[356818489,1743251431969,-500.0,0.00023691,2]
[356818490,1743251431978,-500.0,0.00023691,2]
[356818491,1743251431988,-500.0,0.00023691,2]
[356818492,1743251431997,-235.69940585,0.00023691,2]
[356818493,1743251432007,-475.18814222,0.00023691,2]
[356818494,1743251432019,-24.81185778,0.00023691,2]
[356818495,1743251432028,-500.0,0.00023691,2]
[356818496,1743251432038,-396.19815537,0.00023691,2]
[356818497,1743251432047,-114.48998685,0.00023692,2]
[356818498,1743251432059,-24785.51001315,0.00023692,2]
[356818499,1743251432068,-500.9489474,0.000237,2]
[356818500,1743251432078,-625.224413,0.000246,5]
[356818501,1743251432089,-151.2273905,0.00024629,2]
[356818502,1743251432100,-625.224413,0.00024657,3]
[356818503,1743251432110,-500.0,0.00024673,2]
[356818504,1743251432119,-4.78710871,0.00024673,2]
[356818512,1743251437807,-495.21289129,0.00024673,2]
[356818513,1743251437816,-500.0,0.00024673,2]
[356818514,1743251437826,-55.05384485,0.00024673,2]
[356818515,1743251437837,-444.94615515,0.00024673,2]
[356818516,1743251437846,-56.50335602,0.00024673,2]
[356818522,1743251440138,-443.49664398,0.00024673,2]
[356818523,1743251440147,-500.0,0.00024673,2]
[356818524,1743251440156,-485.7249164,0.00024673,2]
[356818526,1743251440167,-500.0,0.00024673,2]
[356818527,1743251440177,-504.62612405,0.00024673,2]
[356818529,1743251440186,-500.0,0.00024673,2]
[356818530,1743251440196,-500.0,0.00024673,2]
[356818532,1743251440205,-500.0,0.00024673,2]
[356818534,1743251440214,-209.47037065,0.00024673,2]
[356818557,1743251445880,-290.52962935,0.00024673,2]
[356818558,1743251445890,-500.0,0.00024673,2]
[356818559,1743251445900,-500.0,0.00024673,2]
[356818560,1743251445910,-500.0,0.00024673,2]
[356818561,1743251445919,-155.95088805,0.00024673,2]
[356818562,1743251445932,-344.04911195,0.00024673,2]
[356818563,1743251445941,-500.0,0.00024673,2]
[356818564,1743251445951,-500.0,0.00024673,2]
[356818565,1743251445960,-535.44368373,0.00024673,2]
[356818566,1743251445970,-578.26552915,0.00024673,2]
[356818567,1743251445980,-500.0,0.00024673,2]
[356818568,1743251445989,-500.0,0.00024699,2]
[356818569,1743251445999,-583.93607983,0.00024699,2]
[356818570,1743251446009,-18327.54857818,0.000247,2]
[356818571,1743251446021,-3227.91796584,0.000247,2]
[356818572,1743251486414,547.071361,0.00029677,14]
[356818573,1743251486860,547.071361,0.00028744,14]
[356818574,1743251487324,547.071361,0.00027811,14]
[356818575,1743251487663,547.071361,0.00026878,14]
[356818576,1743251487953,547.071361,0.00025945,14]
[356818578,1743251658444,300.0,0.000277,13]
[356818579,1743251658833,300.0,0.000292,14]
[356818580,1743251690844,174.475575,0.00013699,2]
[356818582,1743251965430,638.249922,0.00029282,14]
[356818583,1743251965741,638.249922,0.00028335,14]
[356818584,1743251966521,638.249922,0.00027387,14]
[356818585,1743251967061,638.249922,0.0002644,14]
[356818586,1743251970464,638.249922,0.00029533,10]
[356818587,1743251970761,638.249922,0.0002949,10]
[356818588,1743251971051,638.249922,0.00029447,10]
[356818589,1743251971398,638.249922,0.00029404,10]
[356818590,1743251971732,638.249922,0.00029361,10]
[356818591,1743252026675,446.774945,0.00028632,14]
[356818592,1743252026992,446.774945,0.0002698,14]
[356818619,1743252443237,-657.80973521,0.00023078,2]
[356818620,1743252446281,-4683.01714119,0.00023078,2]
[356818621,1743252446303,-300.0,0.00023177,2]
[356818622,1743252446325,-6386.09549884,0.00023178,2]
[356818636,1743252566663,357.419956,0.00029792,14]
[356818637,1743252567258,357.419956,0.00028386,14]
[356818638,1743252567363,357.419956,0.0002698,14]
[356818658,1743252631950,-300.0,0.00023176,2]
[356818660,1743252631960,-500.0,0.00023177,2]
[356818661,1743252631970,-375.43832764,0.00023177,2]
[356818663,1743252631980,-500.0,0.00023177,2]
[356818665,1743252631990,-500.0,0.00023177,2]
[356818667,1743252632000,-500.0,0.00023177,2]
[356818668,1743252632010,-500.0,0.00023177,2]
[356818669,1743252632019,-500.0,0.00023177,2]
[356818670,1743252632029,-500.0,0.00023177,2]
[356818671,1743252632039,-500.0,0.00023177,2]
[356818672,1743252632049,-569.27136631,0.00023177,2]
[356818673,1743252632059,-500.0,0.00023177,2]
[356818674,1743252632068,-500.0,0.00023177,2]
[356818675,1743252632078,-595.55005724,0.00023177,2]
[356818676,1743252632087,-500.0,0.00023177,2]
[356818677,1743252632098,-500.0,0.00023177,2]
[356818678,1743252632109,-500.0,0.00023177,2]
[356818679,1743252632119,-8749.75373658,0.00023177,2]
[356818680,1743252632189,-4864.15076458,0.00023177,2]
[356818681,1743252632199,-24900.0,0.00023179,2]
[356818682,1743252632209,-2303.47413674,0.00023425,2]
[356818683,1743252632219,-203.0879429,0.00023525,2]
[356818684,1743252632229,-160.0,0.00023749,2]
[356818685,1743252632239,-795.78807799,0.000239,5]
[356818686,1743252632248,-500.0,0.00023999,2]
[356818687,1743252632259,-411.78437707,0.00023999,2]
[356818688,1743252632269,-3517.44827636,0.00024,3]
[356818689,1743252632279,-48257.16535666,0.00024,2]
[356818690,1743252632288,-354.98650108,0.00024572,3]
[356818691,1743252632298,-5000.0,0.00024573,2]
[356818692,1743252632308,-500.0,0.00024573,2]
[356818693,1743252632317,-500.0,0.00024573,2]
[356818694,1743252632327,-500.0,0.00024573,2]
[356818695,1743252632336,-172136.56044463,0.000246,2]
[356818696,1743252632348,-2600.0,0.000246,2]
[356818697,1743252632360,-2750.0,0.000246,2]
[356818698,1743252632372,-3513.28653341,0.000246,2]
[356818721,1743252637929,-1381.9,0.00023077,2]
[356818723,1743252637990,-3618.1,0.00023077,2]
[356818724,1743252638000,-49429.85987873,0.000246,2]
[356818758,1743252754903,172.287294,0.00013699,2]
[356818781,1743253169900,326.78396,0.00028746,14]
[356818782,1743253170207,326.78396,0.0002698,14]
[356818788,1743253465285,300.0,0.000277,13]
[356818789,1743253465743,300.0,0.000292,14]
[356818791,1743253646831,24805.0,0.0003,10]
[356818792,1743253647154,-157.0,0.00022,2]
[356818793,1743253647181,-300.0,0.00023702,2]
[356818794,1743253647206,-2415.7031723,0.00023703,3]
[356818795,1743253647233,-288.3944508,0.00023703,2]
[356818796,1743253647263,-500.0,0.00023703,2]
[356818797,1743253647289,-500.0,0.00023703,2]
[356818798,1743253647315,-500.0,0.00023703,2]
[356818799,1743253647346,-500.0,0.00023703,2]
[356818800,1743253647375,-500.0,0.00023703,2]
[356818801,1743253647404,-500.0,0.00023703,2]
[356818802,1743253647434,-500.0,0.00023703,2]
[356818803,1743253647463,-500.0,0.00023703,2]
[356818804,1743253647494,-500.0,0.00023703,2]
[356818805,1743253647524,-478.22178926,0.00023703,2]
[356818806,1743253647551,-549.79595345,0.00023703,2]
[356818807,1743253647577,-2484.96622544,0.00023704,2]
[356818814,1743253750792,1000.0,0.0003,120]
[356818821,1743253768769,269.596767,0.00028612,14]
[356818822,1743253769320,269.596767,0.0002698,14]
[356818823,1743253776299,269.596767,0.00029999,13]
[356818895,1743253832165,-269.15558785,0.00023177,2]
[356818897,1743253832175,-300.0,0.00023703,2]
[356818899,1743253832184,-6547.30416675,0.00023704,2]
[356818906,1743253832328,-468.04,0.00023704,2]
[356818911,1743253838120,-5756.67800724,0.00023704,2]
[356818926,1743253840413,-7471.9377,0.00023704,2]
[356818935,1743253843729,-358.84654264,0.00023704,2]
[356818936,1743253843788,-1812.22735793,0.00023704,2]
[356818937,1743253843798,-160.0,0.00023742,2]
[356818938,1743253843807,-191.18630469,0.00024064,2]
[356818939,1743253843816,-2319.33107644,0.000244,2]
[356818940,1743253843826,-392.01913784,0.00024406,2]
[356818941,1743253843835,-268.75546558,0.00024408,2]
[356818942,1743253843845,-500.0,0.00024473,2]
[356818943,1743253843854,-638.24906395,0.00024499,2]
[356818944,1743253843863,-1758.72413819,0.000245,3]
[356818945,1743253843878,-177.49325054,0.000245,3]
[356818946,1743253843887,-4335.50875234,0.000245,2]
[356818947,1743253843899,-632.02137047,0.000245,2]
[356818960,1743253893662,19000.0,0.00029,120]
[356818961,1743253997367,172.287294,0.00013699,2]
[356818970,1743254367188,332.502679,0.0003,10]
[356818971,1743254368398,332.502679,0.0002938,14]
[356818972,1743254368715,332.502679,0.00026474,14]
[356819016,1743254724882,151.0,0.00028,10]
[356819057,1743254825131,-198.92664809,0.00023077,2]
[356819058,1743254825158,-300.0,0.0002339,2]
[356819059,1743254825183,-500.0,0.00023391,2]
[356819060,1743254825211,-500.0,0.00023391,2]
[356819061,1743254825234,-500.0,0.00023391,2]
[356819062,1743254825263,-122.19854375,0.00023391,2]
[356819074,1743254834081,-247.18370313,0.00023391,2]
[356819119,1743254932752,-278.25369454,0.00017,5]
[356819121,1743254946124,-6363.7944449,0.00017,5]
[356819126,1743254964452,-152.88,0.00017,5]
[356819127,1743254966390,299.252411,0.00029355,14]
[356819128,1743254966679,299.252411,0.0002644,14]
[356819178,1743255043534,-3.73149655,0.00017,5]
[356819179,1743255043544,-300.0,0.0002339,2]
[356819180,1743255043554,-130.61775312,0.00023391,2]
[356819181,1743255043563,-211.52106847,0.00023391,2]
[356819182,1743255043572,-500.0,0.00023391,2]
[356819183,1743255043582,-500.0,0.00023391,2]
[356819184,1743255043591,-213.47157144,0.00023391,2]
[356819186,1743255043600,-278.25369454,0.00023391,2]
[356819188,1743255043609,-9601.35914103,0.00023392,2]
[356819196,1743255047279,-15298.64085897,0.00023392,2]
[356819197,1743255047288,-2295.23199787,0.000237,2]
[356819198,1743255047298,-8721.4367332,0.000238,3]
[356819199,1743255047307,-8784.97673314,0.000238,2]
[356819200,1743255047318,-1000.0,0.000238,2]
[356819201,1743255047328,-1881.28825899,0.00024301,2]
[356819202,1743255047337,-500.0,0.00024373,2]
[356819203,1743255047347,-1000.0,0.00024397,2]
[356819204,1743255047356,-2000.0,0.00024398,2]
[356819205,1743255047365,-5000.0,0.00024399,2]
[356819206,1743255047375,-553.8056527,0.00024399,2]
[356819207,1743255047383,-852.70814104,0.000244,3]
[356819208,1743255047393,-21649.12787377,0.000244,2]
[356819209,1743255047725,-867.9,0.000244,2]
[356819211,1743255258618,300.0,0.000277,13]
[356819212,1743255259463,300.0,0.000292,14]
[356819226,1743255567137,170.099014,0.00013699,2]
[356819227,1743255567307,279.30225,0.0002938,14]
[356819228,1743255567612,279.30225,0.00026474,14]
[356819230,1743255574071,279.30225,0.00029385,13]
[356819231,1743255574370,279.30225,0.000277,13]
[356819236,1743256040134,-156.0,0.00022,2]
[356819237,1743256040156,-263.583165,0.00022355,2]
[356819238,1743256040395,-2635.6295191,0.00022801,2]
[356819239,1743256040417,-700.0,0.00023,2]
[356819240,1743256040439,-5000.0,0.00023292,2]
[356819241,1743256040461,-300.0,0.00023299,2]
[356819242,1743256040482,-1505.98723153,0.000233,2]
[356819243,1743256041108,-758.69055018,0.000233,2]
[356819249,1743256166693,207.481672,0.0002938,14]
[356819250,1743256167010,207.481672,0.00026474,14]
[356819251,1743256175165,207.481672,0.00028975,13]
[356819252,1743256175536,207.481672,0.000277,13]
[356819262,1743256232647,-2387.89822685,0.00023192,2]
[356819263,1743256232657,-2267.65538298,0.000233,2]
[356819265,1743256232666,-300.0,0.00023374,2]
[356819267,1743256232675,-3335.45159505,0.00023375,2]
[356819270,1743256232700,-3050.64390379,0.00023375,2]
[356819272,1743256232709,-500.0,0.00023376,2]
[356819273,1743256232719,-340.65928552,0.00023376,2]
[356819274,1743256232729,-500.0,0.00023376,2]
[356819275,1743256232739,-500.0,0.00023376,2]
[356819276,1743256232748,-500.0,0.00023376,2]
[356819277,1743256232757,-514.08827643,0.00023376,2]
[356819278,1743256232767,-500.0,0.00023376,2]
[356819279,1743256232777,-500.0,0.00023376,2]
[356819280,1743256232786,-500.0,0.00023376,2]
[356819281,1743256232796,-500.0,0.00023376,2]
[356819282,1743256232805,-500.0,0.00023376,2]
[356819283,1743256232815,-500.0,0.00023376,2]
[356819284,1743256232825,-500.0,0.00023376,2]
[356819285,1743256232835,-500.0,0.00023376,2]
[356819286,1743256232844,-17313.00687413,0.00023377,2]
[356819293,1743256238583,-7586.99312587,0.00023377,2]
[356819294,1743256238593,-500.0,0.000234,2]
[356819295,1743256238602,-105.3664404,0.000234,2]
[356819296,1743256238614,-394.6335596,0.000234,2]
[356819297,1743256238623,-500.0,0.000234,2]
[356819298,1743256238633,-500.0,0.000234,2]
[356819299,1743256238646,-500.0,0.000234,2]
[356819300,1743256238655,-500.0,0.000234,2]
[356819301,1743256238664,-500.0,0.000234,2]
[356819302,1743256238674,-500.0,0.000234,2]
[356819303,1743256238684,-500.0,0.000234,2]
[356819304,1743256238693,-500.0,0.000234,2]
[356819305,1743256238703,-419.01754197,0.000234,2]
[356819306,1743256238713,-500.0,0.000234,2]
[356819307,1743256238722,-769.26180854,0.000239,5]
[356819308,1743256238731,-462.58587245,0.00023999,2]
[356819309,1743256238741,-700.0,0.00024,3]
[356819310,1743256238750,-29604.0733,0.00024,4]
[356819311,1743256238759,-863.7900233,0.00024152,2]
[356819312,1743256238769,-5027.69717011,0.00024297,3]
[356819313,1743256238778,-770.2927283,0.00024297,3]
[356819314,1743256238788,-73622.75286661,0.00024297,2]
[356819315,1743256238800,-3561.71520727,0.00024297,2]
[356819316,1743256239066,-1173.4666573,0.00024297,2]
[356819319,1743256240886,-2129.85333198,0.00024297,2]
[356819320,1743256240921,-772.79413623,0.00024297,2]
[356819321,1743256240932,-493.28256153,0.00024297,2]
[356819322,1743256240943,-1611.06137471,0.00024297,2]
[356819329,1743256243738,-16634.07386439,0.00024297,2]
[356819330,1743256243747,-83319.68657638,0.000243,2]
[356819331,1743256243759,-1677.28475584,0.000243,2]
[356819332,1743256243841,-2578.0196,0.000243,2]
[356819341,1743256246728,-774.056639,0.000243,2]
[356819342,1743256246749,-6389.02791052,0.000243,2]
[356819350,1743256246940,-14293.32029438,0.000243,2]
[356819360,1743256676322,170.099013,0.00013699,2]
[356819368,1743256766625,183.769481,0.0002938,14]
[356819369,1743256766952,183.769481,0.00026474,14]
[356819370,1743256777472,183.769481,0.00029385,13]
[356819372,1743256777778,183.769481,0.000277,13]
[356819377,1743256911326,-1002.116667,0.000249,7]
[356819378,1743256911356,-1002.116667,0.000249,7]
[356819379,1743256911383,-151.0,0.000249,7]
[356819380,1743256911411,-151.0,0.000249,7]
[356819381,1743256911439,-1998.0,0.000249,7]
[356819382,1743256911466,-1998.0,0.000249,7]
[356819383,1743256911494,-151.0,0.000249,7]
[356819384,1743256911524,-151.0,0.000249,7]
[356819385,1743256911550,-201.618525,0.000249,7]
[356819386,1743256911575,-201.618525,0.000249,7]
[356819387,1743256911603,-151.0,0.000249,7]
[356819388,1743256911632,-201.618525,0.00024973,7]
[356819389,1743256911659,-201.618525,0.00024973,7]
[356819390,1743256911688,-151.0,0.00024973,7]
[356819391,1743256911715,-151.0,0.0002499,7]
[356819392,1743256911743,-1002.116667,0.0002499,7]
[356819393,1743256911770,-1002.116667,0.0002499,7]
[356819394,1743256911796,-153.200353,0.0002499,7]
[356819395,1743256911822,-1998.0,0.0002499,7]
[356819396,1743256911847,-1998.0,0.0002499,7]
[356819397,1743256911876,-1998.0,0.0002499,7]
[356819398,1743256911902,-1998.0,0.0002499,7]
[356819399,1743256911929,-151.0,0.0002499,7]
[356819400,1743256911955,-151.0,0.0002499,7]
[356819401,1743256911980,-224.12981,0.0002499,7]
[356819402,1743256912006,-835.30152125,0.0002499,7]
[356819403,1743256912032,-418.66406265,0.0002499,7]
[356819404,1743256912057,-151.0,0.00025,7]
[356819405,1743256912083,-151.0,0.00025,7]
[356819406,1743256912109,-151.0,0.00025,7]
[356819407,1743256912136,-1002.116667,0.00025,7]
[356819408,1743256912162,-1002.116667,0.00025,7]
[356819409,1743256912188,-1002.116667,0.00025,7]
[356819410,1743256912214,-1002.116667,0.00025,7]
[356819411,1743256912240,-1998.0,0.00025,7]
[356819412,1743256912265,-1998.0,0.00025,7]
[356819413,1743256912291,-1998.0,0.00025,7]
[356819414,1743256912317,-1998.0,0.00025,7]
[356819415,1743256912342,-160.0,0.00025,7]
[356819416,1743256912369,-151.0,0.00025,7]
[356819417,1743256912395,-151.0,0.00025,7]
[356819418,1743256912423,-201.618525,0.00025,7]
[356819419,1743256912449,-201.618525,0.00025,7]
[356819420,1743256912477,-201.618525,0.00025,7]
[356819421,1743256912504,-201.618525,0.00025,7]
[356819422,1743256912531,-182.608719,0.00025,7]
[356819424,1743256920838,-743.61974841,0.000239,5]
[356819425,1743256920872,-183.769481,0.000246,5]
[356819426,1743256920901,-743.61974819,0.00024624,5]
[356819427,1743256920932,-8831.2050205,0.00025,5]
[356819435,1743257058225,300.0,0.000274,13]
[356819436,1743257058638,300.0,0.000289,14]
[356819439,1743257360318,-180.67795214,0.00022311,2]
[356819440,1743257366466,162.767254,0.0002938,14]
[356819441,1743257366771,162.767254,0.00026474,14]
[356819442,1743257375478,162.767254,0.00029325,13]
[356819443,1743257375917,162.767254,0.000277,13]
[356819498,1743257431836,-49.11971376,0.00022311,2]
[356819500,1743257431845,-312.891741,0.00022464,2]
[356819502,1743257431854,-300.0,0.00023117,2]
[356819504,1743257431863,-199.76854524,0.00023118,2]
[356819513,1743257431945,-300.23145476,0.00023118,2]
[356819515,1743257431954,-500.0,0.00023118,2]
[356819517,1743257431964,-500.0,0.00023118,2]
[356819519,1743257431973,-500.0,0.00023118,2]
[356819522,1743257431983,-500.0,0.00023118,2]
[356819524,1743257431992,-278.76312087,0.00023118,2]
[356819526,1743257432002,-500.0,0.00023118,2]
[356819528,1743257432011,-393.25092273,0.00023118,2]
[356819530,1743257432023,-106.74907727,0.00023118,2]
[356819532,1743257432036,-465.12811383,0.00023118,2]
[356820066,1743257437701,-34.87188617,0.00023118,2]
[356820068,1743257437711,-500.0,0.00023118,2]
[356820070,1743257437720,-8.34291017,0.00023118,2]
[356820084,1743257437846,-491.65708983,0.00023118,2]
[356820086,1743257437855,-500.0,0.00023118,2]
[356820088,1743257437865,-500.0,0.00023118,2]
[356820090,1743257437874,-500.0,0.00023118,2]
[356820092,1743257437883,-500.0,0.00023118,2]
[356820094,1743257437893,-500.0,0.00023118,2]
[356820096,1743257437902,-500.0,0.00023118,2]
[356820098,1743257437911,-500.0,0.00023118,2]
[356820100,1743257437920,-500.0,0.00023118,2]
[356820102,1743257437930,-500.0,0.00023118,2]
[356820104,1743257437939,-500.0,0.00023118,2]
[356820106,1743257437949,-500.0,0.00023118,2]
[356820108,1743257437958,-500.0,0.00023118,2]
[356820110,1743257437968,-500.0,0.00023118,2]
[356820112,1743257437978,-548.07647437,0.00023118,2]
[356820114,1743257437987,-742.5664358,0.00023119,2]
[356820335,1743257440155,-3945.3939657,0.00023119,2]
[356820337,1743257440164,-24900.0,0.00023121,2]
[356820339,1743257440173,-500.68207043,0.00023173,2]
[356820341,1743257440182,-501.7407927,0.00023173,2]
[356820343,1743257440191,-500.0,0.00023173,2]
[356820345,1743257440200,-500.0,0.00023173,2]
[356820347,1743257440209,-501.74498303,0.00023173,2]
[356820349,1743257440219,-464.81246957,0.00023173,2]
[356820351,1743257440228,-500.0,0.00023173,2]
[356820353,1743257440237,-500.0,0.00023173,2]
[356820355,1743257440246,-1984.19846009,0.000232,2]
[356820357,1743257440256,-5340.8268764,0.000233,2]
[356820359,1743257440266,-216.20385134,0.00023705,2]
[356820361,1743257440276,-160.0,0.00023716,2]
[356820363,1743257440285,-743.61974841,0.000239,5]
[356820366,1743257440296,-2888.27678234,0.0002399,2]
[356820628,1743257443296,-1459.33856072,0.0002399,2]
[356820630,1743257443308,-519.47999996,0.0002399,2]
[356820636,1743257443357,-485.5037594,0.0002399,2]
[356820638,1743257443367,-152.0,0.00024073,2]
[356820640,1743257443377,-483.75983802,0.000241,2]
[356820642,1743257443386,-3.73640258,0.00024152,2]
[356820760,1743257444645,1681.03016617,0.0003,10]
[356820834,1743257445960,-323.81011071,0.00024151,2]
[356820835,1743257445969,-397.53750854,0.00024152,2]
[356820848,1743257446046,-246.56860638,0.00024152,2]
[356820850,1743257446058,-500.0,0.00024173,2]
[356820852,1743257446067,-500.0,0.00024173,2]
[356820854,1743257446078,-500.0,0.00024173,2]
[356820856,1743257446088,-500.0,0.00024173,2]
[356820858,1743257446098,-3.43139362,0.00024173,2]
[356820860,1743257446114,-496.56860638,0.00024173,2]
[356820862,1743257446124,-500.0,0.00024173,2]
[356820864,1743257446133,-287.6221784,0.00024173,2]
[356820866,1743257446143,-500.0,0.00024173,2]
[356820868,1743257446152,-500.0,0.00024173,2]
[356820870,1743257446162,-500.0,0.00024173,2]
[356820872,1743257446171,-500.0,0.00024173,2]
[356820874,1743257446180,-500.0,0.00024173,2]
[356820876,1743257446190,-500.0,0.00024173,2]
[356820878,1743257446200,-503.20767594,0.00024173,2]
[356820880,1743257446210,-500.0,0.00024173,2]
[356820881,1743257446219,-500.0,0.00024173,2]
[356820882,1743257446228,-622.2,0.00024185,2]
[356820883,1743257446237,-3379.15173286,0.00024199,3]
[356820885,1743257446246,-620.49588932,0.00024199,3]
[356820886,1743257446255,-7842.89612214,0.000242,2]
[356820940,1743257925433,180.415023,0.00013699,2]
[356820941,1743257966855,168.192829,0.0002938,14]
[356820942,1743257967170,168.192829,0.00026474,14]
[356820943,1743257974199,168.192829,0.00029755,13]
[356820944,1743257974514,168.192829,0.000277,13]
[356820945,1743258243412,3721.95238558,0.0003,10]
[356820950,1743258449111,-253.31027776,0.00022243,2]
[356820962,1743258566886,150.793571,0.0002938,14]
[356820963,1743258567182,150.793571,0.00026474,14]
[356820964,1743258571431,150.793571,0.0002957,13]
[356820984,1743258632189,-152.88,0.00017,5]
[356820985,1743258632199,-59.58146424,0.00022243,2]
[356820986,1743258632208,-492.0050339,0.00022392,2]
[356820987,1743258632217,-5000.0,0.00023017,2]
[356820988,1743258632226,-300.0,0.00023108,2]
[356820989,1743258632235,-500.0,0.00023109,2]
[356820990,1743258632244,-500.0,0.00023109,2]
[356820991,1743258632253,-500.0,0.00023109,2]
[356820992,1743258632263,-500.0,0.00023109,2]
[356820993,1743258632272,-500.0,0.00023109,2]
[356820994,1743258632281,-500.0,0.00023109,2]
[356820995,1743258632290,-500.0,0.00023109,2]
[356820996,1743258632298,-500.0,0.00023109,2]
[356820997,1743258632307,-500.0,0.00023109,2]
[356820998,1743258632316,-500.0,0.00023109,2]
[356820999,1743258632325,-500.0,0.00023109,2]
[356821000,1743258632335,-500.0,0.00023109,2]
[356821001,1743258632346,-500.0,0.00023109,2]
[356821002,1743258632356,-500.0,0.00023109,2]
[356821003,1743258632366,-500.0,0.00023109,2]
[356821004,1743258632374,-500.0,0.00023109,2]
[356821005,1743258632384,-500.0,0.00023109,2]
[356821006,1743258632393,-500.0,0.00023109,2]
[356821007,1743258632404,-500.0,0.00023109,2]
[356821008,1743258632414,-500.0,0.00023109,2]
[356821009,1743258632423,-500.0,0.00023109,2]
[356821010,1743258632432,-500.0,0.00023109,2]
[356821011,1743258632441,-500.0,0.00023109,2]
[356821012,1743258632451,-500.0,0.00023109,2]
[356821013,1743258632460,-500.0,0.00023109,2]
[356821014,1743258632469,-500.0,0.00023109,2]
[356821015,1743258632478,-500.0,0.00023109,2]
[356821016,1743258632488,-500.0,0.00023109,2]
[356821017,1743258632498,-500.0,0.00023109,2]
[356821018,1743258632507,-500.0,0.00023109,2]
[356821019,1743258632516,-344.98643161,0.00023109,2]
[356821020,1743258632526,-176.90313278,0.00023109,2]
[356821021,1743258632535,-539.73648926,0.00023109,2]
[356821022,1743258632544,-500.0,0.00023109,2]
[356821023,1743258632554,-500.0,0.00023109,2]
[356821024,1743258632563,-500.0,0.00023109,2]
[356821025,1743258632573,-500.0,0.00023109,2]
[356821026,1743258632582,-500.0,0.00023109,2]